bitfinex-derivatives/quotes_SOLF0:USTF0_20250425
["timestamp","ask_amount","ask_price","bid_price","bid_amount"]
[1745594961780,6.5093,153.52,153.45,25.10214955]
[1745594961981,16.97854955,153.54,153.48,6.5107]
[1745594962583,16.97854955,153.52,153.45,8.1236]
[1745594962883,6.5102,153.5,153.45,8.1236]
[1745594963385,16.97854955,153.52,153.45,8.1236]
[1745594963584,16.97854955,153.54,153.45,8.1236]
[1745594963884,16.97854955,153.54,153.48,6.5105]
[1745594964083,16.97854955,153.54,153.45,25.10214955]
[1745594964283,50.69854955,153.56,153.45,25.10214955]
[1745594964586,33.72,153.56,153.51,16.97854955]
[1745594964777,33.72,153.56,153.49,16.97854955]
[1745594965384,50.69854955,153.56,153.47,16.97854955]
[1745594965685,6.5088,153.53,153.5,6.5097]
[1745594965881,6.5088,153.53,153.47,16.97854955]
[1745594966082,50.69854955,153.56,153.47,16.97854955]
[1745594966783,6.509,153.53,153.49,6.5101]
[1745594966983,50.69854955,153.56,153.49,6.5101]
[1745594967182,50.69854955,153.56,153.45,25.10214955]
[1745594967988,16.97854955,153.54,153.48,6.5105]
[1745594968487,16.97854955,153.54,153.49,6.5101]
[1745594968488,6.5094,153.52,153.49,6.5101]
[1745594968689,16.97854955,153.52,153.45,8.1236]
[1745594969089,16.97854955,153.52,153.46,6.5114]
[1745594969687,33.72,153.51,153.45,8.1236]
[1745594969892,16.97854955,153.48,153.38,16.97854955]
[1745594970092,16.97854955,153.5,153.4,16.97854955]
[1745594970393,16.97854955,153.5,153.45,6.5117]
[1745594970585,16.97854955,153.5,153.4,16.97854955]
[1745594970789,6.511,153.48,153.45,6.512]
[1745594970989,16.97854955,153.5,153.4,16.97854955]
[1745594971188,33.72,153.51,153.42,16.97854955]
[1745594971392,33.72,153.51,153.44,16.97854955]
[1745594971593,33.72,153.51,153.45,4.1184]
[1745594972094,33.72,153.51,153.49,6.5101]
[1745594972294,33.72,153.51,153.46,24.96954955]
[1745594972490,33.72,153.51,153.48,6.5105]
[1745594972786,33.72,153.51,153.46,7.991]
[1745594973693,33.72,153.51,153.47,6.5111]
[1745594974087,33.72,153.51,153.46,7.991]
[1745594974293,33.72,153.51,153.48,6.5108]
[1745594974493,33.72,153.51,153.46,7.991]
[1745594975293,40.2295,153.51,153.46,7.991]
[1745594975794,40.2295,153.51,153.47,6.511]
[1745594975995,33.72,153.51,153.46,7.991]
[1745594976491,16.97854955,153.5,153.42,33.72]
[1745594976691,16.97854955,153.48,153.38,45.7959]
[1745594976885,16.97854955,153.48,153.39,16.97854955]
[1745594977495,16.97854955,153.48,153.43,6.5127]
[1745594977695,16.97854955,153.48,153.39,16.97854955]
[1745594978195,6.5119,153.46,153.42,6.513]
[1745594978593,16.97854955,153.48,153.41,6.5136]
[1745594978794,16.97854955,153.46,153.41,6.5136]
[1745594979100,16.97854955,153.48,153.41,6.5136]
[1745594979398,16.97854955,153.46,153.39,6.5145]
[1745594979695,50.71854955,153.46,153.38,45.7959]
[1745594979892,33.74,153.51,153.45,6.5118]
[1745594980086,33.74,153.51,153.42,16.97854955]
[1745594981099,6.5101,153.5,153.46,6.5113]
[1745594981499,33.74,153.51,153.42,16.97854955]
[1745594981701,6.5101,153.5,153.42,16.97854955]
[1745594982197,6.5101,153.5,153.46,6.5113]
[1745594982398,33.74,153.51,153.44,16.97854955]
[1745594982899,33.74,153.51,153.48,6.5106]
[1745594983100,33.74,153.51,153.44,16.97854955]
[1745594983295,33.74,153.51,153.49,6.5101]
[1745594983697,33.74,153.51,153.45,8.058]
[1745594984101,40.2496,153.51,153.45,8.058]
[1745594984499,33.74,153.51,153.45,8.058]
[1745594984804,50.71854955,153.51,153.45,8.058]
[1745594985305,16.97854955,153.49,153.4,16.97854955]
[1745594985602,16.97854955,153.49,153.44,6.5122]
[1745594986195,16.97854955,153.49,153.44,6.5124]
[1745594986402,16.97854955,153.49,153.4,16.97854955]
[1745594986603,16.97854955,153.49,153.43,6.5127]
[1745594986804,6.5115,153.47,153.4,16.97854955]
[1745594987003,16.97854955,153.49,153.4,16.97854955]
[1745594987205,16.97854955,153.47,153.39,7.5484]
[1745594988004,6.5121,153.45,153.39,7.5484]
[1745594988198,16.97854955,153.47,153.39,7.5484]
[1745594988806,16.97854955,153.47,153.42,6.5131]
[1745594989203,6.5123,153.45,153.42,6.5131]
[1745594989405,16.97854955,153.47,153.43,6.5129]
[1745594989606,16.97854955,153.47,153.39,7.5484]
[1745594989802,16.97854955,153.47,153.42,6.5131]
[1745594989998,33.7,153.46,153.42,6.5131]
[1745594990307,6.5122,153.45,153.39,7.5484]
[1745594990507,6.5122,153.45,153.42,6.5131]
[1745594991210,6.5121,153.45,153.42,6.5131]
[1745594991410,33.7,153.46,153.43,6.5128]
[1745594991610,33.7,153.46,153.39,24.52694955]
[1745594991811,6.5121,153.45,153.39,24.52694955]
[1745594992211,6.5122,153.45,153.39,24.52694955]
[1745594992412,6.5122,153.45,153.42,6.513]
[1745594993012,40.2119,153.46,153.39,24.52694955]
[1745594993214,33.7,153.46,153.39,7.5484]
[1745594993414,33.7,153.46,153.39,24.52694955]
[1745594993806,33.7,153.46,153.41,16.97854955]
[1745594994215,33.7,153.46,153.44,6.5123]
[1745594994412,33.7,153.46,153.4,16.97854955]
[1745594994611,33.7,153.46,153.44,6.5123]
[1745594995417,33.7,153.46,153.45,6.512]
[1745594995713,33.7,153.46,153.4,16.97854955]
[1745594995914,33.7,153.46,153.44,6.5121]
[1745594996116,50.67854955,153.5,153.4,16.97854955]
[1745594996305,6.5106,153.49,153.46,6.5115]
[1745594996816,6.5108,153.48,153.45,6.5118]
[1745594997717,50.67854955,153.5,153.39,24.52694955]
[1745594998217,6.5115,153.47,153.44,6.5122]
[1745594998818,50.67854955,153.5,153.39,24.52694955]
[1745594999118,50.67854955,153.5,153.41,16.97854955]
[1745594999322,6.511,153.48,153.41,16.97854955]
[1745594999617,50.67854955,153.5,153.41,16.97854955]
[1745594999817,50.67854955,153.5,153.44,6.5121]
[1745595000018,50.67854955,153.5,153.41,16.97854955]
[1745595000619,33.7,153.54,153.47,16.97854955]
[1745595000921,6.5089,153.53,153.5,6.5099]
[1745595001218,16.97854955,153.52,153.43,50.67854955]
[1745595001419,16.97854955,153.5,153.43,33.7]
[1745595001618,16.97854955,153.52,153.43,16.97854955]
[1745595001919,16.97854955,153.52,153.41,16.97854955]
[1745595002121,6.5109,153.48,153.45,6.5116]
[1745595002314,33.7,153.49,153.39,58.22694955]
[1745595002519,23.48944955,153.48,153.43,6.5125]
[1745595002818,16.97854955,153.48,153.39,58.22694955]
[1745595003218,16.97854955,153.48,153.4,6.514]
[1745595003421,16.97854955,153.44,153.35,33.7]
[1745595003622,6.5135,153.42,153.38,6.5147]
[1745595003920,50.67854955,153.44,153.38,6.5147]
[1745595004316,6.5137,153.42,153.38,6.5147]
[1745595004517,50.67854955,153.44,153.39,6.5146]
[1745595004823,6.5131,153.43,153.39,6.5146]
[1745595005117,33.7,153.44,153.38,16.97854955]
[1745595005316,6.5112,153.47,153.4,16.97854955]
[1745595005621,33.7,153.52,153.44,16.97854955]
[1745595006114,33.7,153.52,153.46,16.97854955]
[1745595006321,33.7,153.55,153.46,16.97854955]
[1745595006520,33.7,153.55,153.48,16.97854955]
[1745595006919,33.7,153.55,153.49,3.7476]
[1745595007115,33.7,153.55,153.52,6.5088]
[1745595007321,27.35479947,153.54,153.4,33.7]
[1745595007618,27.35479947,153.54,153.49,6.5103]
[1745595007619,6.5088,153.53,153.49,6.5103]
[1745595007818,27.35479947,153.54,153.43,31.10239947]
[1745595008320,27.35479947,153.54,153.48,6.5107]
[1745595008321,6.5093,153.52,153.48,6.5107]
[1745595008528,27.35479947,153.54,153.43,31.10239947]
[1745595008718,6.5107,153.49,153.44,6.5121]
[1745595009017,27.35479947,153.54,153.43,3.7476]
[1745595009225,27.35479947,153.54,153.45,6.5119]
[1745595009526,27.35479947,153.51,153.43,3.7476]
[1745595009824,33.7,153.5,153.43,3.7476]
[1745595010327,6.511,153.48,153.45,6.5117]
[1745595011127,33.7,153.5,153.43,3.7476]
[1745595012124,468.86,153.52,153.45,27.35479947]
[1745595012430,502.56,153.52,153.45,27.35479947]
[1745595012619,502.56,153.52,153.49,6.5101]
[1745595013228,502.56,153.52,153.48,6.5107]
[1745595013528,502.56,153.52,153.45,27.35479947]
[1745595013830,509.0693,153.52,153.48,6.5105]
[1745595014428,502.56,153.52,153.49,6.5102]
[1745595014726,502.56,153.52,153.45,27.35479947]
[1745595015127,509.0692,153.52,153.48,6.5107]
[1745595015527,509.0692,153.52,153.48,6.5105]
[1745595015826,502.56,153.52,153.45,27.35479947]
[1745595016128,6.5102,153.5,153.46,6.5114]
[1745595016427,6.5102,153.5,153.45,27.35479947]
[1745595016428,502.56,153.52,153.43,3.7476]
[1745595016627,6.5106,153.49,153.45,6.5119]
[1745595016925,502.56,153.52,153.43,3.7476]
[1745595017227,6.5102,153.5,153.43,3.7476]
[1745595017628,502.56,153.52,153.43,3.7476]
[1745595017829,6.5106,153.49,153.45,6.5117]
[1745595018233,502.56,153.52,153.43,3.7476]
[1745595018524,27.35479947,153.51,153.43,3.7476]
[1745595018924,27.35479947,153.51,153.43,10.2604]
[1745595019930,6.5111,153.48,153.43,3.7476]
[1745595020131,33.64,153.47,153.43,3.7476]
[1745595020528,6.5129,153.43,153.34,27.35479947]
[1745595020729,33.64,153.42,153.35,12.2005]
[1745595021431,33.64,153.42,153.39,6.5145]
[1745595021634,33.64,153.42,153.35,12.2005]
[1745595022131,33.64,153.42,153.4,6.5137]
[1745595022333,33.64,153.42,153.35,39.55529947]
[1745595022936,33.64,153.44,153.38,27.35479947]
[1745595023236,33.64,153.44,153.41,6.5135]
[1745595023634,33.64,153.44,153.35,39.55529947]
[1745595023834,33.64,153.44,153.4,6.5139]
[1745595024037,33.64,153.44,153.35,39.55529947]
[1745595025138,6.5129,153.43,153.39,6.5143]
[1745595025432,6.5129,153.43,153.35,39.55529947]
[1745595025433,33.64,153.44,153.35,39.55529947]
[1745595025633,33.64,153.44,153.42,6.5133]
[1745595025834,33.64,153.48,153.38,27.35479947]
[1745595026235,33.64,153.48,153.41,27.35479947]
[1745595026734,33.64,153.48,153.46,6.5113]
[1745595027038,33.64,153.48,153.41,27.35479947]
[1745595027338,502.5,153.52,153.41,60.99479947]
[1745595027533,502.5,153.52,153.44,27.35479947]
[1745595027733,33.64,153.52,153.44,27.35479947]
[1745595028333,33.64,153.52,153.49,6.5101]
[1745595029135,40.1491,153.52,153.48,6.5104]
[1745595029330,33.64,153.52,153.44,27.35479947]
[1745595029737,40.1492,153.52,153.48,6.5105]
[1745595030132,33.64,153.52,153.44,27.35479947]
[1745595030336,33.64,153.52,153.49,6.5101]
[1745595030538,33.64,153.52,153.44,27.35479947]
[1745595031235,40.1493,153.52,153.48,6.5105]
[1745595031638,40.1493,153.52,153.42,39.24839947]
[1745595032139,6.5096,153.51,153.42,39.24839947]
[1745595032436,33.64,153.52,153.48,6.5105]
[1745595032740,33.64,153.52,153.42,39.24839947]
[1745595033040,6.5097,153.51,153.42,39.24839947]
[1745595033241,33.64,153.52,153.5,6.5096]
[1745595033736,33.64,153.52,153.45,27.35479947]
[1745595034040,33.64,153.56,153.48,27.35479947]
[1745595034240,33.64,153.56,153.49,7.8064]
[1745595034440,33.64,153.56,153.49,3.788]
[1745595034739,6.5088,153.53,153.46,37.6584]
[1745595034939,33.64,153.56,153.46,4.0184]
[1745595035140,33.64,153.56,153.43,3.788]
[1745595035141,27.35479947,153.54,153.43,3.788]
[1745595035439,6.5106,153.49,153.43,3.788]
[1745595036041,33.64,153.5,153.43,3.788]
[1745595036545,33.64,153.5,153.48,6.5106]
[1745595036838,33.64,153.5,153.39,4.0184]
[1745595037043,33.64,153.5,153.4,4.0771]
[1745595037542,6.511,153.48,153.4,4.0771]
[1745595038043,33.64,153.5,153.4,4.0771]
[1745595038237,33.64,153.5,153.43,6.5126]
[1745595038639,33.64,153.5,153.4,4.0771]
[1745595038842,6.5114,153.47,153.44,6.5124]
[1745595039044,6.5114,153.47,153.4,4.0771]
[1745595039343,6.5114,153.47,153.43,6.5126]
[1745595039547,6.5117,153.46,153.43,6.5126]
[1745595040139,33.64,153.5,153.41,27.35479947]
[1745595040540,6.5106,153.49,153.41,27.35479947]
[1745595040743,33.64,153.5,153.41,27.35479947]
[1745595041144,40.15,153.5,153.41,27.35479947]
[1745595041345,33.64,153.5,153.41,27.35479947]
[1745595041549,6.5105,153.49,153.41,27.35479947]
[1745595042148,6.5105,153.49,153.45,6.5116]
[1745595042342,33.64,153.5,153.41,27.35479947]
[1745595042841,6.5104,153.49,153.41,27.35479947]
[1745595043345,33.64,153.5,153.49,6.5103]
[1745595043541,33.58,153.55,153.44,27.35479947]
[1745595043741,33.58,153.55,153.45,3.9837]
[1745595044044,6.5085,153.54,153.45,3.9837]
[1745595044243,33.58,153.55,153.46,4.1367]
[1745595045045,33.58,153.55,153.47,3.9548]
[1745595045345,33.58,153.55,153.47,31.30959947]
[1745595045744,62.11269947,153.59,153.48,33.58]
[1745595046449,60.93479947,153.59,153.53,6.5083]
[1745595047643,60.93479947,153.59,153.48,33.58]
[1745595047847,6.507,153.57,153.48,33.58]
[1745595048148,60.93479947,153.59,153.48,33.58]
[1745595048449,6.5069,153.58,153.48,33.58]
[1745595048850,60.93479947,153.59,153.54,6.5079]
[1745595049245,60.93479947,153.59,153.47,31.30959947]
[1745595050046,60.93479947,153.59,153.53,6.5086]
[1745595050351,60.93479947,153.59,153.47,31.30959947]
[1745595050752,33.58,153.59,153.5,27.35479947]
[1745595051054,33.58,153.59,153.55,6.5076]
[1745595051255,33.58,153.59,153.5,27.35479947]
[1745595051853,33.58,153.59,153.54,6.5081]
[1745595052255,6.5067,153.58,153.54,6.5081]
[1745595052555,6.5067,153.58,153.55,6.5075]
[1745595052747,40.0864,153.59,153.5,27.35479947]
[1745595052951,33.58,153.59,153.5,27.35479947]
[1745595053450,6.5066,153.58,153.5,27.35479947]
[1745595053950,6.507,153.57,153.5,27.35479947]
[1745595054153,33.58,153.59,153.5,27.35479947]
[1745595055258,33.58,153.59,153.55,6.5074]
[1745595055458,33.58,153.59,153.52,17.07859841]
[1745595055753,508.9247,153.63,153.56,17.07859841]
[1745595055957,33.56,153.63,153.58,17.07859841]
[1745595056157,34.078,153.67,153.6,17.07859841]
[1745595056352,6.5036,153.65,153.61,6.505]
[1745595056558,50.63859841,153.67,153.58,17.07859841]
[1745595056858,6.5043,153.64,153.6,6.5057]
[1745595057556,6.5043,153.64,153.59,6.5061]
[1745595057756,50.63859841,153.67,153.58,17.07859841]
[1745595057957,33.56,153.67,153.61,6.5052]
[1745595058257,6.5036,153.65,153.58,17.07859841]
[1745595058458,33.56,153.67,153.59,6.5059]
[1745595058958,6.5043,153.64,153.59,6.5059]
[1745595059158,6.5043,153.64,153.6,6.5056]
[1745595059359,6.5043,153.64,153.58,17.07859841]
[1745595059659,6.5043,153.64,153.6,6.5055]
[1745595059953,33.56,153.67,153.54,3.5968]
[1745595059954,17.07859841,153.65,153.54,3.5968]
[1745595060160,17.07859841,153.6,153.53,3.6828]
[1745595060453,6.5067,153.58,153.54,6.508]
[1745595060654,50.63859841,153.62,153.53,3.6828]
[1745595061048,6.5073,153.57,153.53,3.6828]
[1745595061360,6.5073,153.57,153.54,6.5082]
[1745595061562,6.5073,153.57,153.53,3.6828]
[1745595061858,6.5073,153.57,153.54,6.5081]
[1745595062161,6.5066,153.58,153.53,3.6828]
[1745595062459,6.5066,153.58,153.55,6.5077]
[1745595062663,6.507,153.57,153.53,3.6828]
[1745595062860,17.07859841,153.6,153.51,3.5513]
[1745595063161,17.07859841,153.58,153.51,3.5513]
[1745595063357,27.33919919,153.59,153.51,3.5513]
[1745595063659,60.89919919,153.62,153.51,3.5513]
[1745595064159,60.89919919,153.62,153.54,6.508]
[1745595064563,60.89919919,153.62,153.51,3.5513]
[1745595065054,27.33919919,153.59,153.51,3.5513]
[1745595065759,27.33919919,153.59,153.53,6.5085]
[1745595065959,60.89919919,153.62,153.51,3.5513]
[1745595066159,33.56,153.62,153.52,27.33919919]
[1745595066359,33.56,153.62,153.55,27.33919919]
[1745595066557,34.078,153.66,153.55,27.33919919]
[1745595066962,33.56,153.66,153.55,27.33919919]
[1745595067162,6.503,153.67,153.58,27.33919919]
[1745595067461,6.503,153.67,153.59,37.1355]
[1745595067657,502.28,153.7,153.65,6.5033]
[1745595068162,6.5022,153.69,153.65,6.5033]
[1745595068358,27.33919919,153.69,153.59,3.5755]
[1745595068663,6.5051,153.62,153.56,7.3755]
[1745595068854,33.56,153.64,153.56,7.3755]
[1745595069359,33.56,153.64,153.57,6.5068]
[1745595069558,33.56,153.64,153.56,7.3755]
[1745595069759,27.33919919,153.63,153.56,3.5811]
[1745595070063,27.33919919,153.63,153.56,10.0885]
[1745595070267,6.5062,153.59,153.53,3.5755]
[1745595070561,27.33919919,153.63,153.55,6.5075]
[1745595070763,6.5069,153.58,153.53,3.5755]
[1745595070961,27.33919919,153.63,153.53,3.5755]
[1745595071155,27.33919919,153.63,153.53,10.0839]
[1745595071358,6.5066,153.58,153.53,3.5755]
[1745595071665,6.5066,153.58,153.54,6.5079]
[1745595071855,27.33919919,153.63,153.53,3.5755]
[1745595072455,33.56,153.64,153.54,27.33919919]
[1745595072659,33.56,153.64,153.54,60.89919919]
[1745595072961,33.56,153.64,153.57,27.33919919]
[1745595073162,33.48,153.68,153.58,3.7014]
[1745595073463,6.5038,153.65,153.61,6.5051]
[1745595073662,33.48,153.68,153.58,3.7014]
[1745595073866,27.33919919,153.67,153.58,3.7014]
[1745595074062,6.5055,153.61,153.58,3.7014]
[1745595075268,27.33919919,153.67,153.59,6.506]
[1745595075567,27.33919919,153.67,153.58,3.7014]
[1745595076362,27.33919919,153.67,153.53,37.0555]
[1745595076566,27.33919919,153.64,153.53,37.0555]
[1745595076765,33.48,153.63,153.53,37.0555]
[1745595077060,27.33919919,153.61,153.51,3.8399]
[1745595077266,27.33919919,153.58,153.46,468.5]
[1745595077465,60.81919919,153.58,153.46,468.5]
[1745595077667,60.81919919,153.58,153.51,6.5092]
[1745595077668,6.508,153.55,153.51,6.5092]
[1745595077965,60.81919919,153.58,153.46,468.5]
[1745595078164,6.508,153.55,153.51,6.5092]
[1745595078469,33.48,153.58,153.46,468.5]
[1745595078669,6.507,153.57,153.52,6.5087]
[1745595079269,6.5075,153.56,153.52,6.5087]
[1745595079569,33.48,153.58,153.5,0.37658]
[1745595079772,6.5083,153.54,153.5,0.37658]
[1745595080069,27.33919919,153.56,153.5,0.37658]
[1745595080271,6.509,153.53,153.5,0.37658]
[1745595080569,27.33919919,153.56,153.5,0.37658]
[1745595080764,6.5091,153.52,153.5,0.37658]
[1745595080969,27.33919919,153.56,153.5,0.37658]
[1745595081871,6.5095,153.51,153.5,0.37658]
[1745595082274,6.5095,153.51,153.42,27.33919919]
[1745595082275,60.81919919,153.53,153.41,33.48]
[1745595083072,6.511,153.48,153.41,33.48]
[1745595083672,6.5105,153.49,153.41,33.48]
[1745595083873,27.33919919,153.5,153.41,33.48]
[1745595084272,6.5114,153.47,153.41,33.48]
[1745595084572,27.33919919,153.5,153.41,33.48]
[1745595085074,27.33919919,153.5,153.39,7.5639]
[1745595085278,27.33919919,153.47,153.39,7.5639]
[1745595085568,0.5163,153.55,153.39,7.5639]
[1745595085769,360.0,153.66,153.52,27.33919919]
[1745595085973,33.48,153.68,153.55,27.33919919]
[1745595086168,33.48,153.68,153.53,44.3956]
[1745595086169,59.45117832,153.68,153.53,44.3956]
[1745595086374,151.4978755,153.71,153.67,27.33919919]
[1745595086574,189.3723443,153.73,153.68,62.11919919]
[1745595086870,395.3,153.87,153.72,27.33919919]
[1745595086871,1.1337536,153.79,153.72,27.33919919]
[1745595087067,27.33919919,153.84,153.68,27.33919919]
[1745595087271,31.05639919,153.78,153.66,34.8]
[1745595087568,0.52,153.77,153.65,27.33919919]
[1745595087970,0.52,153.77,153.6,35.98]
[1745595088276,27.33919919,153.73,153.55,35.98]
[1745595088570,27.33919919,153.69,153.55,63.31919919]
[1745595088774,11.3218,153.68,153.58,27.33919919]
[1745595088970,3.7502,153.68,153.61,27.33919919]
[1745595089275,27.33919919,153.72,153.59,27.33919919]
[1745595089573,27.33919919,153.69,153.55,35.98]
[1745595089769,44.3721088,153.68,153.55,35.98]
[1745595090073,37.2,153.71,153.57,44.3721088]
[1745595090277,37.2,153.71,153.6,6.5053]
[1745595090475,37.2,153.71,153.57,44.3721088]
[1745595090975,37.2,153.71,153.55,35.98]
[1745595090976,44.3721088,153.66,153.55,35.98]
[1745595091275,11.1946,153.65,153.55,35.98]
[1745595091681,11.1946,153.65,153.56,7.56228261]
[1745595092779,55.5667088,153.65,153.56,7.56228261]
[1745595093474,11.1946,153.65,153.56,7.56228261]
[1745595093679,11.1946,153.65,153.56,44.74228261]
[1745595094181,7.3033,153.65,153.57,44.3721088]
[1745595094375,37.18,153.7,153.6,44.3721088]
[1745595094681,6.5037,153.65,153.55,44.3721088]
[1745595094880,44.3721088,153.66,153.55,81.5521088]
[1745595095180,7.1572,153.69,153.55,81.5521088]
[1745595095382,6.5033,153.66,153.55,88.0599088]
[1745595095677,44.3721088,153.67,153.55,81.5521088]
[1745595095874,7.1572,153.69,153.58,44.3721088]
[1745595096977,51.5293088,153.69,153.58,44.3721088]
[1745595097979,58.0315088,153.69,153.58,44.3721088]
[1745595098183,51.5293088,153.69,153.62,30.24913045]
[1745595098484,6.5025,153.68,153.62,30.24913045]
[1745595098782,51.5293088,153.69,153.62,30.24913045]
[1745595099080,6.5026,153.68,153.62,30.24913045]
[1745595099488,51.5293088,153.69,153.62,30.24913045]
[1745595099676,360.0,153.88,153.62,30.24913045]
[1745595099876,44.3721088,153.83,153.7,44.3721088]
[1745595100080,37.18,153.82,153.71,37.18]
[1745595100783,6.4986,153.77,153.71,37.18]
[1745595100984,37.18,153.82,153.71,37.18]
[1745595101185,44.3721088,153.81,153.71,37.18]
[1745595101381,11.1737,153.8,153.71,37.18]
[1745595101586,44.3721088,153.78,153.67,37.16]
[1745595101881,37.16,153.77,153.67,37.16]
[1745595102385,6.5007,153.72,153.65,6.5035]
[1745595102586,6.5007,153.72,153.63,468.42]
[1745595102798,37.16,153.77,153.63,468.42]
[1745595102988,37.16,153.77,153.66,6.503]
[1745595103184,37.16,153.77,153.63,468.42]
[1745595103384,44.3721088,153.75,153.63,468.42]
[1745595103585,44.3721088,153.72,153.58,104.21895664]
[1745595103786,48.0737,153.71,153.58,104.21895664]
[1745595103989,6.5041,153.64,153.58,43.6664]
[1745595104288,44.3721088,153.69,153.58,37.16]
[1745595104489,44.3721088,153.66,153.57,7.56228261]
[1745595104690,81.5321088,153.66,153.57,7.56228261]
[1745595104989,6.5045,153.63,153.57,7.56228261]
[1745595105287,81.5321088,153.66,153.57,7.56228261]
[1745595105587,6.5043,153.64,153.57,7.56228261]
[1745595105788,81.5321088,153.66,153.54,37.16]
[1745595107189,44.3721088,153.63,153.5,37.16]
[1745595107389,44.3721088,153.6,153.5,37.16]
[1745595107590,6.5069,153.58,153.53,6.5085]
[1745595107790,81.5321088,153.6,153.53,6.5085]
[1745595107992,81.5321088,153.6,153.47,7.56228261]
[1745595109595,37.16,153.6,153.49,44.3721088]
[1745595109989,6.5064,153.59,153.49,44.3721088]
[1745595110185,37.16,153.6,153.52,44.3721088]
[1745595110487,11.7049,153.62,153.55,44.3721088]
[1745595110692,7.7998,153.62,153.55,44.3721088]
[1745595111092,37.18,153.69,153.58,44.3721088]
[1745595114195,81.5521088,153.69,153.58,44.3721088]
[1745595114496,6.504,153.65,153.59,6.506]
[1745595114698,81.5521088,153.69,153.57,37.18]
[1745595114996,6.5039,153.65,153.59,6.5058]
[1745595115196,6.5039,153.65,153.59,12.82397349]
[1745595115697,6.5041,153.64,153.59,12.82397349]
[1745595115897,81.5521088,153.69,153.59,12.82427349]
[1745595116100,6.5043,153.64,153.59,12.82427349]
[1745595116899,37.18,153.69,153.59,6.31817349]
[1745595117197,37.18,153.69,153.58,44.3721088]
[1745595117497,6.5024,153.68,153.58,44.3721088]
[1745595117704,37.18,153.69,153.58,44.3721088]
[1745595118094,6.5028,153.67,153.63,6.5044]
[1745595118597,37.18,153.69,153.58,44.3721088]
[1745595119099,6.504,153.64,153.6,6.5055]
[1745595119293,37.18,153.69,153.58,44.3721088]
[1745595119599,37.18,153.69,153.59,7.56228261]
[1745595120093,44.3721088,153.68,153.59,7.56228261]
[1745595120604,37.18,153.69,153.59,7.56228261]
[1745595120795,44.3721088,153.68,153.59,7.56228261]
[1745595121200,44.3721088,153.65,153.59,7.56228261]
[1745595121395,36.38,153.64,153.59,2.27968261]
[1745595121704,36.38,153.64,153.59,6.35907928]
[1745595121705,6.5057,153.6,153.59,6.35907928]
[1745595122398,6.741,153.63,153.59,6.35907928]
[1745595122802,3.2596,153.63,153.6,6.5056]
[1745595123003,3.2596,153.63,153.59,6.35907928]
[1745595123205,3.2596,153.63,153.55,22.68684784]
[1745595123206,47.6317088,153.63,153.55,22.68684784]
[1745595124004,6.5062,153.59,153.55,22.68684784]
[1745595124207,3.2596,153.63,153.55,22.68684784]
[1745595124509,6.506,153.6,153.56,6.5074]
[1745595124798,44.3721088,153.6,153.55,22.68684784]
[1745595125006,6.5074,153.56,153.55,12.11884784]
[1745595125311,39.876,153.59,153.53,12.11884784]
[1745595125496,6.5081,153.55,153.53,12.11884784]
[1745595125698,39.876,153.59,153.53,12.11884784]
[1745595125906,44.3721088,153.57,153.53,12.11884784]
[1745595126107,6.5082,153.54,153.53,6.83394784]
[1745595126398,80.7721088,153.54,153.51,1e-08]
[1745595126900,44.3721088,153.52,153.48,140.7993982]
[1745595127109,44.3721088,153.49,153.47,24.9374678]
[1745595127306,36.4,153.48,153.47,12.9510678]
[1745595127605,36.4,153.48,153.46,268.3197469]
[1745595127996,36.4,153.48,153.4,304.1541965]
[1745595128201,44.3721088,153.44,153.4,304.1541965]
[1745595128499,36.4,153.43,153.41,37.78068842]